fUST/lending_fUST_20251118
["ID","MTS","AMOUNT","RATE_DAILY","PERIOD"]
[394266781,1763413839547,-500.0,0.0002522,2]
[394266782,1763413839559,-500.0,0.0002522,2]
[394266783,1763413839569,-500.0,0.0002522,2]
[394266784,1763413839579,-500.0,0.0002522,2]
[394266785,1763413839589,-500.0,0.0002522,2]
[394266786,1763413839598,-500.0,0.0002522,2]
[394266787,1763413839607,-500.0,0.0002522,2]
[394266788,1763413839616,-500.0,0.0002522,2]
[394266789,1763413839628,-500.0,0.0002522,2]
[394266790,1763413839637,-500.0,0.0002522,2]
[394266791,1763413839646,-500.0,0.0002522,2]
[394266792,1763413839656,-500.0,0.0002522,2]
[394266793,1763413839665,-500.0,0.0002522,2]
[394266794,1763413839674,-500.0,0.0002522,2]
[394266795,1763413839685,-500.0,0.0002522,2]
[394266796,1763413839694,-500.0,0.0002522,2]
[394266797,1763413839703,-603.11639583,0.0002522,2]
[394266798,1763413839712,-500.0,0.0002522,2]
[394266799,1763413839721,-500.0,0.0002522,2]
[394266800,1763413839730,-500.0,0.0002522,2]
[394266801,1763413839739,-500.0,0.0002522,2]
[394266802,1763413839748,-500.0,0.0002522,2]
[394266803,1763413839758,-500.0,0.0002522,2]
[394266804,1763413839769,-500.0,0.0002522,2]
[394266805,1763413839778,-500.0,0.0002522,2]
[394266806,1763413839787,-500.0,0.0002522,2]
[394266807,1763413839796,-500.0,0.0002522,2]
[394266808,1763413839805,-500.0,0.0002522,2]
[394266810,1763413839815,-500.0,0.0002522,2]
[394266811,1763413839824,-500.0,0.0002522,2]
[394266813,1763413839833,-500.0,0.0002522,2]
[394266814,1763413839843,-500.0,0.0002522,2]
[394266815,1763413839852,-500.0,0.0002522,2]
[394266816,1763413839862,-500.0,0.0002522,2]
[394266817,1763413839871,-500.0,0.0002522,2]
[394266818,1763413839880,-500.0,0.0002522,2]
[394266819,1763413839891,-500.0,0.0002522,2]
[394266820,1763413839903,-500.0,0.0002522,2]
[394266821,1763413839913,-500.0,0.0002522,2]
[394266822,1763413839922,-500.0,0.0002522,2]
[394266823,1763413839931,-500.0,0.0002522,2]
[394266824,1763413839941,-500.0,0.0002522,2]
[394266825,1763413839950,-500.0,0.0002522,2]
[394266826,1763413839959,-550.0,0.0002522,2]
[394266827,1763413839968,-248.37430819,0.00025224,2]
[394266829,1763413839977,-500.0,0.00025224,2]
[394266830,1763413839987,-500.0,0.00025273,2]
[394266831,1763413839997,-500.0,0.00025273,2]
[394266832,1763413840006,-509.88878154,0.00025273,2]
[394266833,1763413840016,-500.0,0.00025273,2]
[394266834,1763413840026,-500.0,0.00025273,2]
[394266835,1763413840035,-500.0,0.00025273,2]
[394266836,1763413840044,-500.0,0.00025273,2]
[394266837,1763413840055,-500.0,0.00025273,2]
[394266838,1763413840064,-223.95788097,0.00025273,2]
[394266839,1763413840074,-500.0,0.00025273,2]
[394266840,1763413840083,-500.0,0.00025273,2]
[394266841,1763413840092,-500.0,0.00025273,2]
[394266842,1763413840101,-506.44130238,0.00025273,2]
[394266843,1763413840111,-500.0,0.00025273,2]
[394266844,1763413840120,-500.0,0.00025273,2]
[394266845,1763413840129,-500.0,0.00025273,2]
[394266846,1763413840138,-500.0,0.00025273,2]
[394266847,1763413840147,-500.0,0.00025273,2]
[394266848,1763413840156,-500.0,0.00025273,2]
[394266849,1763413840165,-500.0,0.00025273,2]
[394266850,1763413840174,-500.0,0.00025273,2]
[394266851,1763413840183,-500.0,0.00025273,2]
[394266852,1763413840192,-500.0,0.00025273,2]
[394266853,1763413840202,-500.0,0.00025273,2]
[394266854,1763413840211,-500.0,0.00025273,2]
[394266855,1763413840220,-500.0,0.00025273,2]
[394266856,1763413840229,-501.34286782,0.00025273,2]
[394266857,1763413840238,-500.0,0.00025498,2]
[394266858,1763413840247,-204.0,0.00025506,2]
[394266859,1763413840257,-489.11340408,0.00025521,2]
[394266860,1763413840266,-1000.0,0.00025521,2]
[394266861,1763413840275,-1000.0,0.00025521,2]
[394266862,1763413840284,-1000.0,0.00025521,2]
[394266863,1763413840294,-508.79392546,0.00025521,2]
[394266864,1763413840303,-1000.0,0.00025521,2]
[394266865,1763413840312,-36859.4598444,0.00025738,2]
[394266866,1763413840322,-36859.4598444,0.0002574,2]
[394266867,1763413840331,-194.72792766,0.00025744,2]
[394266868,1763413840340,-36859.4598444,0.0002575,2]
[394266869,1763413840349,-57115.1284685,0.0002576,2]
[394266870,1763413840358,-500.0,0.00025772,2]
[394266871,1763413840367,-500.0,0.00025773,2]
[394266872,1763413840376,-477.74577119,0.00025773,2]
[394266873,1763413840385,-500.0,0.00025773,2]
[394266874,1763413840394,-500.0,0.00025773,2]
[394266875,1763413840403,-500.0,0.00025773,2]
[394266876,1763413840412,-500.0,0.00025773,2]
[394266877,1763413840422,-500.0,0.00025773,2]
[394266878,1763413840431,-500.0,0.00025773,2]
[394266879,1763413840441,-448.74009227,0.00025773,2]
[394266880,1763413840450,-500.0,0.00025773,2]
[394266881,1763413840459,-500.0,0.00025773,2]
[394266882,1763413840468,-500.0,0.00025773,2]
[394266883,1763413840477,-500.79496343,0.00025773,2]
[394266884,1763413840487,-500.0,0.00025773,2]
[394266885,1763413840496,-500.0,0.00025773,2]
[394266886,1763413840505,-442.43214923,0.00025773,2]
[394266887,1763413840514,-500.0,0.00025773,2]
[394266888,1763413840523,-500.65210024,0.00025773,2]
[394266889,1763413840533,-500.0,0.00025773,2]
[394266890,1763413840543,-521.0832849,0.00025773,2]
[394266891,1763413840551,-506.76459582,0.00025773,2]
[394266892,1763413840563,-305.98487742,0.00025773,2]
[394266893,1763413840572,-501.41442112,0.00025773,2]
[394266894,1763413840581,-501.16438933,0.00025773,2]
[394266895,1763413840591,-500.0,0.00025773,2]
[394266896,1763413840600,-633.43459674,0.00025773,2]
[394266897,1763413840609,-219.27889302,0.00025773,2]
[394266898,1763413840619,-504.31967727,0.00025773,2]
[394266899,1763413840629,-503.66722272,0.00025773,2]
[394266900,1763413840638,-500.0,0.00025773,2]
[394266901,1763413840647,-500.0,0.00025773,2]
[394266902,1763413840656,-500.0,0.00025773,2]
[394266903,1763413840665,-500.94920212,0.00025773,2]
[394266904,1763413840675,-500.0,0.00025773,2]
[394266905,1763413840685,-500.0,0.00025773,2]
[394266906,1763413840695,-500.0,0.00025773,2]
[394266907,1763413840703,-500.0,0.00025773,2]
[394266908,1763413840712,-522.31091827,0.00025773,2]
[394266909,1763413840721,-500.0,0.00025773,2]
[394266910,1763413840730,-500.0,0.00025773,2]
[394266911,1763413840739,-500.0,0.00025773,2]
[394266912,1763413840748,-507.64775567,0.00025773,2]
[394266913,1763413840756,-500.0,0.00025773,2]
[394266914,1763413840766,-500.0,0.00025773,2]
[394266915,1763413840774,-500.0,0.00025773,2]
[394266916,1763413840783,-199.05805664,0.00025773,2]
[394266917,1763413840792,-500.0,0.00025773,2]
[394266918,1763413840801,-509.93100257,0.00025773,2]
[394266919,1763413840812,-36859.4598444,0.0002579,2]
[394266920,1763413840821,-197.53,0.000258,7]
[394266921,1763413840830,-2864.15,0.000258,7]
[394266922,1763413840840,-1002.96448252,0.00025821,2]
[394266923,1763413840850,-1000.0,0.00025821,2]
[394266924,1763413840860,-1000.0,0.00025821,2]
[394266925,1763413840869,-499.98196993,0.00025821,2]
[394266926,1763413840877,-288.66479068,0.00025821,2]
[394266927,1763413840886,-1000.0,0.00025821,2]
[394266928,1763413840895,-1000.0,0.00025821,2]
[394266929,1763413840976,-1000.0,0.00025821,2]
[394266930,1763413840988,-1000.0,0.00025821,2]
[394266931,1763413840998,-1000.0,0.00025821,2]
[394266932,1763413841007,-1000.0,0.00025821,2]
[394266933,1763413841016,-409.71236041,0.00025821,2]
[394266934,1763413841025,-1014.53990102,0.00025821,2]
[394266935,1763413841034,-1000.0,0.00025821,2]
[394266936,1763413841043,-1011.37023418,0.00025821,2]
[394266937,1763413841051,-1000.0,0.00025821,2]
[394266938,1763413841062,-500.0,0.00025821,2]
[394266939,1763413841071,-1009.16903761,0.00025821,2]
[394266940,1763413841080,-1000.0,0.00025821,2]
[394266941,1763413841090,-350.01,0.000259,2]
[394266942,1763413841099,-7092.48364881,0.00026,2]
[394266943,1763413841108,-500.0,0.00026045,2]
[394266944,1763413841118,-1500.0,0.00026068,2]
[394266945,1763413841127,-1500.0,0.00026068,2]
[394266946,1763413841136,-591.85763767,0.00026068,2]
[394266947,1763413841145,-1500.0,0.00026068,2]
[394266948,1763413841154,-779.59310145,0.00026137,2]
[394266949,1763413841163,-201.93286099,0.00026292,2]
[394266950,1763413841172,-500.0,0.00026319,2]
[394266951,1763413841181,-1000.0,0.00026321,2]
[394266952,1763413841190,-1000.0,0.00026321,2]
[394266953,1763413841199,-1006.80097054,0.00026321,2]
[394266954,1763413841208,-1001.83390598,0.00026321,2]
[394266955,1763413841217,-1000.0,0.00026321,2]
[394266956,1763413841227,-398.4623948,0.00026321,2]
[394266957,1763413841236,-1091.73676598,0.00026321,2]
[394266958,1763413841245,-503.37464979,0.00026321,2]
[394266959,1763413841254,-1000.0,0.00026321,2]
[394266960,1763413841263,-1006.66898639,0.00026321,2]
[394266961,1763413841272,-508.79709345,0.00026321,2]
[394266962,1763413841281,-1000.0,0.00026321,2]
[394266963,1763413841291,-1000.0,0.00026321,2]
[394266964,1763413841300,-1000.0,0.00026321,2]
[394266965,1763413841310,-1009.33725645,0.00026321,2]
[394266966,1763413841320,-481.69996397,0.00026321,2]
[394266967,1763413841330,-1000.0,0.00026321,2]
[394266968,1763413841340,-1038.08386182,0.00026321,2]
[394266969,1763413841349,-1000.0,0.00026321,2]
[394266970,1763413841359,-1000.0,0.00026321,2]
[394266971,1763413841368,-1000.0,0.00026321,2]
[394266972,1763413841378,-1000.0,0.00026321,2]
[394266973,1763413841387,-1000.0,0.00026321,2]
[394266974,1763413841396,-1000.0,0.00026321,2]
[394266975,1763413841406,-258.07948271,0.00026321,2]
[394266976,1763413841415,-501.67009495,0.00026321,2]
[394266977,1763413841424,-1000.0,0.00026321,2]
[394266978,1763413841434,-310.0,0.00026357,2]
[394266979,1763413841443,-1500.0,0.00026368,2]
[394266980,1763413841452,-1500.0,0.00026368,2]
[394266981,1763413841462,-614.9217838,0.00026368,2]
[394266982,1763413841471,-1500.0,0.00026368,2]
[394266983,1763413841481,-1500.0,0.00026368,2]
[394266984,1763413841490,-1500.0,0.00026368,2]
[394266985,1763413841499,-1500.0,0.00026368,2]
[394266986,1763413841509,-1500.0,0.00026368,2]
[394266987,1763413841518,-1503.01757502,0.00026368,2]
[394266988,1763413841527,-1500.0,0.00026368,2]
[394266989,1763413841536,-151.0,0.000265,17]
[394266990,1763413841545,-381.0,0.00026589,2]
[394266991,1763413841556,-462.90605611,0.00026593,2]
[394266992,1763413841565,-715.43,0.000266,14]
[394266993,1763413841575,-524.86410953,0.00026616,2]
[394266994,1763413841584,-500.0,0.00026616,2]
[394266995,1763413841593,-1244.83487821,0.00026616,2]
[394266996,1763413841602,-160.0,0.00026673,2]
[394266997,1763413841612,-209.40437684,0.0002684,2]
[394266998,1763413841621,-36859.4598444,0.00026845,2]
[394266999,1763413841630,-318.6798599,0.00026851,2]
[394267000,1763413841641,-1500.0,0.00026868,2]
[394267001,1763413841650,-1028.87099454,0.00026868,2]
[394267002,1763413841660,-1500.0,0.00026868,2]
[394267003,1763413841669,-514.81752038,0.00026868,2]
[394267004,1763413841679,-427.15293082,0.00026868,2]
[394267005,1763413841688,-1500.0,0.00026868,2]
[394267006,1763413841700,-1517.13190715,0.00026868,2]
[394267007,1763413841711,-633.13153348,0.00026868,2]
[394267008,1763413841720,-712.03063547,0.00026868,2]
[394267009,1763413841730,-1500.0,0.00026868,2]
[394267010,1763413841740,-1510.92587493,0.00026868,2]
[394267011,1763413841749,-504.68130408,0.00026868,2]
[394267012,1763413841760,-515.17008264,0.00026868,2]
[394267013,1763413841771,-1509.55592898,0.00026868,2]
[394267014,1763413841782,-300.0,0.00026873,2]
[394267015,1763413841791,-2000.0,0.00026916,2]
[394267016,1763413841802,-1147.22031248,0.00026916,2]
[394267017,1763413841813,-2000.0,0.00026916,2]
[394267018,1763413841822,-2004.43111576,0.00026916,2]
[394267019,1763413841831,-2000.0,0.00026916,2]
[394267020,1763413841840,-2000.0,0.00026916,2]
[394267021,1763413841850,-885.6842637,0.00026916,2]
[394267022,1763413841859,-420.0,0.00027072,2]
[394267023,1763413841868,-779.59310145,0.00027152,2]
[394267024,1763413841878,-480.0,0.00027194,2]
[394267025,1763413841888,-260.0,0.00027221,2]
[394267026,1763413841897,-217.15233878,0.00027388,2]
[394267027,1763413841911,-1000.0,0.00027397,5]
[394267028,1763413841920,-1568.77859409,0.00027416,5]
[394267029,1763413841929,-1014.77369635,0.00027416,5]
[394267030,1763413841938,-2000.0,0.00027416,5]
[394267031,1763413841950,-2000.0,0.00027416,5]
[394267032,1763413841959,-786.09776513,0.00027464,5]
[394267033,1763413841968,-2500.0,0.00027464,5]
[394267034,1763413841979,-2500.0,0.00027464,5]
[394267035,1763413841989,-2500.0,0.00027464,5]
[394267036,1763413841998,-151.0,0.000275,11]
[394267037,1763413842009,-231.0,0.00027506,2]
[394267038,1763413842018,-600.0,0.00027695,5]
[394267039,1763413842027,-360.0,0.00027769,2]
[394267040,1763413842037,-225.18697532,0.00027936,2]
[394267041,1763413842046,-2004.05639777,0.00027945,5]
[394267042,1763413842055,-424.1274135,0.00027973,5]
[394267043,1763413842064,-500.0,0.00027973,5]
[394267044,1763413842073,-501.70551518,0.00027973,5]
[394267045,1763413842082,-500.0,0.00027973,5]
[394267046,1763413842092,-500.61430866,0.00027973,5]
[394267047,1763413842102,-292.13648314,0.00027973,5]
[394267048,1763413842111,-500.0,0.00027973,5]
[394267049,1763413842120,-500.0,0.00027973,5]
[394267050,1763413842130,-36859.4598444,0.00027975,2]
[394267051,1763413842139,-215.28273032,0.00027997,2]
[394267052,1763413842148,-1395.48,0.00028,2]
[394267053,1763413842157,-151.0,0.00028,10]
[394267054,1763413842167,-980.18657332,0.00028012,5]
[394267055,1763413842176,-1838.25565597,0.00028012,5]
[394267056,1763413842186,-3000.0,0.00028012,5]
[394267057,1763413842195,-779.59310145,0.00028167,2]
[394267058,1763413842204,-460.0,0.00028317,2]
[394267059,1763413842213,-3713.7592553,0.00028421,2]
[394267060,1763413842223,-233.51889341,0.00028484,2]
[394267061,1763413842232,-36859.4598444,0.00028511,2]
[394267062,1763413842242,-900.0,0.00028516,5]
[394267063,1763413842251,-500.79728517,0.00028521,5]
[394267064,1763413842261,-505.94005253,0.00028521,5]
[394267065,1763413842270,-1000.0,0.00028521,5]
[394267066,1763413842279,-1000.0,0.00028521,5]
[394267067,1763413842288,-222.46671014,0.0002853,5]
[394267068,1763413842297,-500.0,0.0002853,2]
[394267069,1763413842307,-501.19829201,0.0002853,5]
[394267070,1763413842318,-500.0,0.0002853,5]
[394267071,1763413842327,-283.71607935,0.0002853,5]
[394267072,1763413842337,-197.53,0.000289,7]
[394267073,1763413842346,-2864.15,0.000289,7]
[394267074,1763413842355,-36859.4598444,0.0002898,2]
[394267075,1763413842364,-151.0,0.00029,10]
[394267076,1763413842373,-242.15909246,0.00029032,2]
[394267077,1763413842383,-1500.0,0.00029068,5]
[394267078,1763413842393,-236.57194987,0.00029068,5]
[394267079,1763413842403,-1000.0,0.00029078,2]
[394267080,1763413842478,-1006.52112238,0.00029078,5]
[394267082,1763413842487,-779.59310145,0.00029182,2]
[394267083,1763413842497,-2081.55092665,0.00029258,2]
[394267084,1763413842506,-500.0,0.00029273,5]
[394267085,1763413842516,-215.54105053,0.00029273,5]
[394267086,1763413842526,-251.51848566,0.00029284,30]
[394267087,1763413842535,-500.0,0.00029284,30]
[394267088,1763413842545,-500.0,0.00029284,30]
[394267089,1763413842555,-500.0,0.00029284,30]
[394267090,1763413842566,-500.0,0.00029284,30]
[394267091,1763413842579,-578.22,0.00029284,30]
[394267092,1763413842588,-578.22,0.00029284,30]
[394267093,1763413842597,-9775.35,0.00029284,2]
[394267095,1763413842606,-9775.35,0.00029284,2]
[394267097,1763413842615,-524.45601,0.00029285,2]
[394267098,1763413842624,-715.43,0.000293,14]
[394267099,1763413842634,-587.0,0.00029328,2]
[394267100,1763413842643,-214.84617284,0.00029338,5]
[394267101,1763413842652,-151.0,0.000295,14]
[394267102,1763413842662,-258.0,0.00029506,2]
[394267103,1763413842670,-251.11897888,0.0002958,2]
[394267104,1763413842680,-2000.0,0.00029616,5]
[394267105,1763413842689,-214.49794381,0.00029626,2]
[394267106,1763413842698,-500.0,0.0002982,30]
[394267107,1763413842707,-500.0,0.0002982,30]
[394267108,1763413842717,-578.22,0.0002982,30]
[394267109,1763413842728,-9775.35,0.0002982,2]
[394267110,1763413842737,-1001.64416043,0.00029821,5]
[394267111,1763413842747,-1395.48,0.0003,2]
[394267112,1763413842755,-260.4103811,0.00030128,2]
[394267113,1763413842764,-2500.0,0.00030164,5]
[394267114,1763413842773,-780.37269455,0.00030197,2]
[394267115,1763413842782,-500.0,0.00030219,5]
[394267116,1763413842791,-500.0,0.00030219,5]
[394267117,1763413842800,-200.48292085,0.00030434,2]
[394267119,1763413842811,-151.0,0.000305,12]
[394267121,1763413842821,-500.0,0.00030511,5]
[394267122,1763413842830,-500.0,0.00030511,5]
[394267123,1763413842840,-150.98056717,0.00030639,10]
[394267124,1763413842849,-359.79806852,0.00030676,2]
[394267125,1763413842858,-1000.0,0.00030712,5]
[394267126,1763413842867,-502.14062101,0.00030767,5]
[394267127,1763413842877,-1000.0,0.00030767,5]
[394267128,1763413842886,-500.0,0.00030769,5]
[394267129,1763413842895,-500.0,0.00030769,5]
[394267130,1763413842906,-151.0,0.00031,13]
[394267132,1763413842919,-500.0,0.00031018,30]
[394267133,1763413842928,-500.0,0.00031018,30]
[394267135,1763413842937,-578.22,0.00031018,30]
[394267137,1763413842947,-9775.35,0.00031018,2]
[394267139,1763413842956,-10156.0448579,0.00031019,5]
[394267141,1763413842966,-1003.97584305,0.00031058,5]
[394267142,1763413842975,-1000.0,0.00031058,5]
[394267143,1763413842986,-161.552,0.00031095,28]
[394267144,1763413842995,-150.0,0.00031168,2]
[394267145,1763413843005,-505.3476145,0.00031184,2]
[394267146,1763413843015,-197.53,0.000312,7]
[394267147,1763413843024,-2864.15,0.000312,7]
[394267148,1763413843033,-715.43,0.000313,14]
[394267149,1763413843042,-501.86696439,0.00031317,5]
[394267150,1763413843051,-1000.0,0.00031317,5]
[394267151,1763413843062,-153.50846881,0.00031487,7]
[394267152,1763413843071,-285.0,0.00031506,2]
[394267153,1763413843080,-1395.48,0.000316,2]
[394267154,1763413843089,-301.88257163,0.00031606,5]
[394267155,1763413843099,-823.0,0.00031772,2]
[394267156,1763413843108,-399.14002068,0.00031865,5]
[394267157,1763413843117,-3713.7592553,0.00031907,2]
[394267158,1763413843126,-151.0,0.00032,20]
[394267159,1763413843136,-7680.67755398,0.00032196,2]
[394267160,1763413843145,-151.0,0.000325,17]
[394267161,1763413843154,-266.47655193,0.00032877,7]
[394267162,1763413843164,-151.11681432,0.000332,117]
[394267163,1763413843173,-500.0,0.00033361,2]
[394267164,1763413843183,-500.0,0.00033361,30]
[394267165,1763413843192,-500.0,0.00033361,30]
[394267166,1763413843201,-500.0,0.00033361,30]
[394267167,1763413843210,-500.0,0.00033361,30]
[394267168,1763413843219,-578.22,0.00033361,30]
[394267169,1763413843229,-578.22,0.00033361,30]
[394267171,1763413843238,-9775.35,0.00033361,2]
[394267172,1763413843247,-9775.35,0.00033361,2]
[394267173,1763413843256,-500.0,0.00033371,30]
[394267174,1763413843265,-500.0,0.00033371,30]
[394267175,1763413843274,-500.0,0.00033371,30]
[394267176,1763413843284,-500.0,0.00033371,30]
[394267177,1763413843293,-578.22,0.00033371,30]
[394267178,1763413843302,-578.22,0.00033371,30]
[394267179,1763413843313,-9775.35,0.00033371,2]
[394267180,1763413843323,-9775.35,0.00033371,2]
[394267181,1763413843332,-500.0,0.00033373,5]
[394267182,1763413843342,-500.0,0.00033373,5]
[394267183,1763413843351,-500.0,0.00033393,30]
[394267184,1763413843361,-500.0,0.00033393,30]
[394267185,1763413843370,-578.22,0.00033393,30]
[394267186,1763413843380,-9775.35,0.00033393,2]
[394267187,1763413843390,-151.0,0.000335,18]
[394267188,1763413843399,-312.0,0.00033506,120]
[394267189,1763413843408,-2864.15,0.000336,14]
[394267190,1763413843417,-151.0,0.000336,31]
[394267191,1763413843427,-151.0,0.000336,31]
[394267192,1763413843436,-151.0,0.000336,31]
[394267193,1763413843445,-151.0,0.000336,31]
[394267194,1763413843454,-178.620567,0.000336,31]
[394267195,1763413843463,-151.0,0.000336,31]
[394267196,1763413843472,-725.262065,0.000336,31]
[394267197,1763413843482,-180.505845,0.000336,31]
[394267198,1763413843491,-725.262065,0.000336,31]
[394267199,1763413843500,-725.262065,0.000336,31]
[394267200,1763413843509,-715.43,0.000337,30]
[394267201,1763413843518,-1395.48,0.000337,14]
[394267202,1763413843527,-500.0,0.0003391,30]
[394267203,1763413843536,-500.0,0.0003391,30]
[394267204,1763413843545,-500.0,0.0003391,30]
[394267205,1763413843554,-500.0,0.0003391,30]
[394267206,1763413843565,-578.22,0.0003391,30]
[394267207,1763413843574,-578.22,0.0003391,30]
[394267208,1763413843585,-9775.35,0.0003391,2]
[394267209,1763413843595,-9775.35,0.0003391,2]
[394267210,1763413843605,-1000.0,0.00033921,5]
[394267211,1763413843614,-586.89173665,0.00033921,5]
[394267212,1763413843623,-248.74302745,0.00033972,30]
[394267213,1763413843632,-500.0,0.00033972,30]
[394267214,1763413843641,-578.22,0.00033972,30]
[394267215,1763413843651,-9775.35,0.00033972,2]
[394267216,1763413843661,-503.10126858,0.00033973,5]
[394267217,1763413843670,-276.16807384,0.00033973,5]
[394267218,1763413843679,-500.0,0.00033973,5]
[394267219,1763413843688,-500.0,0.00033973,5]
[394267220,1763413843699,-500.0,0.00033973,5]
[394267221,1763413843708,-504.36325668,0.00033973,4]
[394267222,1763413843717,-501.1299011,0.00033973,5]
[394267223,1763413843726,-151.0,0.00034,10]
[394267224,1763413843735,-206.19,0.00034002,2]
[394267225,1763413843745,-215.28273032,0.00034108,2]
[394267226,1763413843755,-1000.0,0.00034384,5]
[394267227,1763413843764,-500.0,0.00034456,2]
[394267228,1763413843772,-500.0,0.00034468,30]
[394267229,1763413843840,-578.22,0.00034468,30]
[394267230,1763413843850,-9775.35,0.00034468,2]
[394267231,1763413843860,-152.35868626,0.00034468,5]
[394267232,1763413843869,-500.0,0.0003452,30]
[394267233,1763413843878,-578.22,0.0003452,30]
[394267234,1763413843887,-9775.35,0.0003452,2]
[394267235,1763413843896,-513.21510117,0.00034521,5]
[394267236,1763413843910,-503.04312465,0.00034521,5]
[394267237,1763413843919,-151.0,0.00034521,7]
[394267238,1763413843929,-151.0,0.00034521,31]
[394267239,1763413843937,-151.0,0.00034521,31]
[394267240,1763413843947,-151.0,0.00034521,31]
[394267241,1763413843957,-151.0,0.00034521,31]
[394267242,1763413843965,-151.0,0.00034521,31]
[394267243,1763413843975,-151.0,0.00034521,31]
[394267244,1763413843986,-151.0,0.00034521,31]
[394267245,1763413843995,-151.0,0.00034521,31]
[394267246,1763413844004,-151.0,0.00034521,31]
[394267247,1763413844013,-151.0,0.00034521,31]
[394267248,1763413844023,-151.0,0.00034521,31]
[394267249,1763413844033,-151.0,0.00034521,31]
[394267250,1763413844048,-151.0,0.00034521,31]
[394267251,1763413844060,-151.0,0.00034521,31]
[394267252,1763413844069,-151.0,0.00034521,31]
[394267253,1763413844079,-502.60182256,0.0003462,5]
[394267254,1763413844088,-240.11907227,0.0003462,5]
[394267255,1763413844098,-500.0,0.00034843,5]
[394267256,1763413844107,-500.0,0.00034843,5]
[394267257,1763413844117,-157.0,0.00035,120]
[394267258,1763413844126,-151.0,0.00035,15]
[394267259,1763413844135,-500.0,0.00035006,30]
[394267260,1763413844144,-500.0,0.00035006,30]
[394267261,1763413844154,-578.22,0.00035006,30]
[394267262,1763413844163,-578.22,0.00035006,30]
[394267263,1763413844172,-9775.35,0.00035006,2]
[394267264,1763413844181,-9775.35,0.00035006,2]
[394267265,1763413844190,-500.0,0.00035068,30]
[394267266,1763413844199,-578.22,0.00035068,30]
[394267267,1763413844208,-9775.35,0.00035068,2]
[394267268,1763413844217,-216.94605899,0.00035195,30]
[394267269,1763413844227,-500.0,0.00035195,30]
[394267270,1763413844236,-500.0,0.00035246,30]
[394267271,1763413844246,-500.0,0.00035246,30]
[394267272,1763413844255,-578.22,0.00035246,30]
[394267273,1763413844265,-578.22,0.00035246,30]
[394267274,1763413844274,-9775.35,0.00035246,2]
[394267275,1763413844283,-9775.35,0.00035246,2]
[394267276,1763413844292,-500.0,0.00035256,30]
[394267277,1763413844301,-500.0,0.00035256,30]
[394267278,1763413844311,-500.0,0.00035256,30]
[394267279,1763413844320,-500.0,0.00035256,30]
[394267280,1763413844329,-281.11976742,0.00035256,30]
[394267281,1763413844339,-578.22,0.00035256,30]
[394267282,1763413844348,-578.22,0.00035256,30]
[394267283,1763413844358,-578.22,0.00035256,30]
[394267284,1763413844366,-578.22,0.00035256,30]
[394267285,1763413844375,-578.44496478,0.00035256,30]
[394267286,1763413844385,-9775.35,0.00035256,2]
[394267287,1763413844394,-9775.35,0.00035256,2]
[394267288,1763413844403,-9775.35,0.00035256,2]
[394267289,1763413844412,-9775.35,0.00035256,2]
[394267290,1763413844422,-9775.56479656,0.00035256,2]
[394267291,1763413844431,-500.0,0.00035257,30]
[394267292,1763413844440,-500.0,0.00035257,30]
[394267293,1763413844449,-500.0,0.00035273,5]
[394267294,1763413844458,-1000.0,0.00035391,5]